fUSD/lending_fUSD_20250105
["ID","MTS","AMOUNT","RATE_DAILY","PERIOD"]
[347735843,1736087449093,-4721.47,8.493e-05,2]
[347735844,1736087449103,-500.0,8.493e-05,2]
[347735845,1736087449113,-1241.25,8.493e-05,2]
[347735846,1736087449123,-1218.9,8.493e-05,2]
[347735847,1736087449133,-500.0,8.493e-05,2]
[347735848,1736087449143,-500.0,8.493e-05,2]
[347735849,1736087449153,-500.0,8.493e-05,2]
[347735850,1736087449163,-500.0,8.493e-05,2]
[347735851,1736087449172,-2665.79,8.493e-05,2]
[347735852,1736087449182,-760.67,8.493e-05,2]
[347735853,1736087449192,-500.0,8.493e-05,2]
[347735854,1736087449202,-306.18,8.493e-05,2]
[347735855,1736087449211,-4518.88,8.493e-05,2]
[347735856,1736087449221,-500.0,8.493e-05,2]
[347735857,1736087449231,-500.0,8.493e-05,2]
[347735858,1736087449241,-971.8,8.493e-05,2]
[347735859,1736087449250,-500.0,8.493e-05,2]
[347735860,1736087449261,-748.36,8.493e-05,2]
[347735861,1736087449272,-1454.08,8.493e-05,2]
[347735862,1736087449281,-632.83,8.493e-05,2]
[347735863,1736087449291,-3596.85,8.493e-05,2]
[347735864,1736087449301,-1144.8,8.493e-05,2]
[347735865,1736087449311,-3009.84,8.493e-05,2]
[347735866,1736087449321,-1306.84,8.493e-05,2]
[347735867,1736087449331,-1172.62,8.493e-05,2]
[347735868,1736087449343,-1053.43,8.493e-05,2]
[347735869,1736087449352,-2149.95,8.493e-05,2]
[347735870,1736087449362,-4867.27,8.493e-05,2]
[347735871,1736087449372,-956.06,8.493e-05,2]
[347735872,1736087449382,-3847.94,8.493e-05,2]
[347735873,1736087449392,-745.14,8.493e-05,2]
[347735874,1736087449402,-928.53,8.493e-05,2]
[347735875,1736087449412,-573.78,8.493e-05,2]
[347735876,1736087449422,-1744.35,8.493e-05,2]
[347735877,1736087449432,-3460.52,8.493e-05,2]
[347735878,1736087449442,-917.07,8.493e-05,2]
[347735879,1736087449451,-12077.17,8.493e-05,2]
[347735880,1736087449461,-500.0,8.493e-05,2]
[347735881,1736087449471,-1712.07,8.493e-05,2]
[347735882,1736087449481,-1317.55,8.493e-05,2]
[347735883,1736087449490,-4603.7,8.493e-05,2]
[347735884,1736087449500,-586.81,8.493e-05,2]
[347735885,1736087449509,-7134.1,8.493e-05,2]
[347735886,1736087449519,-2511.05,8.493e-05,2]
[347735887,1736087449529,-1211.2,8.493e-05,2]
[347735888,1736087449539,-198.69405448,8.493e-05,2]
[347735889,1736087449549,-3861.99,8.493e-05,2]
[347735890,1736087449558,-766.97,8.493e-05,2]
[347735891,1736087449568,-500.0,8.493e-05,2]
[347735892,1736087449577,-1929.34,8.493e-05,2]
[347735893,1736087449587,-1125.8,8.493e-05,2]
[347735894,1736087449599,-5390.32,8.493e-05,2]
[347735895,1736087449608,-841.04,8.493e-05,2]
[347735896,1736087449618,-1134.92,8.493e-05,2]
[347735897,1736087449628,-805.42,8.493e-05,2]
[347735898,1736087449637,-569.83,8.493e-05,2]
[347735899,1736087449647,-6872.1,8.493e-05,2]
[347735900,1736087449657,-521.77,8.493e-05,2]
[347735901,1736087449667,-2538.04,8.493e-05,2]
[347735902,1736087449677,-1929.3,8.493e-05,2]
[347735903,1736087449687,-500.0,8.493e-05,2]
[347735904,1736087449696,-942.19,8.493e-05,2]
[347735905,1736087449706,-2963.68,8.493e-05,2]
[347735906,1736087449716,-500.0,8.493e-05,2]
[347735907,1736087449726,-3891.85,8.493e-05,2]
[347735908,1736087449736,-1405.3,8.493e-05,2]
[347735909,1736087449746,-1395.54,8.493e-05,2]
[347735910,1736087449757,-945.67,8.493e-05,2]
[347735911,1736087449768,-500.0,8.493e-05,2]
[347735912,1736087449778,-1847.98,8.493e-05,2]
[347735913,1736087449788,-1808.06,8.493e-05,2]
[347735914,1736087449798,-500.0,8.493e-05,2]
[347735915,1736087449807,-5368.34,8.493e-05,2]
[347735916,1736087449817,-5006.82,8.493e-05,2]
[347735917,1736087449826,-500.0,8.493e-05,2]
[347735918,1736087449836,-650.58,8.493e-05,2]
[347735919,1736087449847,-3111.48,8.493e-05,2]
[347735920,1736087449857,-1773.48,8.493e-05,2]
[347735921,1736087449866,-6404.36,8.493e-05,2]
[347735922,1736087449876,-901.65,8.493e-05,2]
[347735923,1736087449886,-2824.28,8.493e-05,2]
[347735924,1736087449896,-5155.77,8.493e-05,2]
[347735925,1736087449907,-1458.21,8.493e-05,2]
[347735926,1736087449917,-3443.73,8.493e-05,2]
[347735927,1736087449926,-748.88,8.493e-05,2]
[347735928,1736087450008,-1521.28,8.493e-05,2]
[347735929,1736087450018,-2067.6,8.493e-05,2]
[347735930,1736087450028,-5645.3,8.493e-05,2]
[347735931,1736087450038,-1159.91,8.493e-05,2]
[347735932,1736087450047,-555.26,8.493e-05,2]
[347735933,1736087450056,-2759.01,8.493e-05,2]
[347735934,1736087450066,-1115.77,8.493e-05,2]
[347735935,1736087450075,-1223.55,8.493e-05,2]
[347735936,1736087450084,-2364.91,8.493e-05,2]
[347735937,1736087450095,-3061.12,8.493e-05,2]
[347735938,1736087450104,-1106.77,8.493e-05,2]
[347735939,1736087450113,-1536.35,8.493e-05,2]
[347735940,1736087450123,-879.52,8.493e-05,2]
[347735941,1736087450133,-506.04,8.493e-05,2]
[347735942,1736087450142,-699.73,8.493e-05,2]
[347735943,1736087450152,-1123.2,8.493e-05,2]
[347735944,1736087450161,-2186.84,8.493e-05,2]
[347735945,1736087450171,-500.0,8.493e-05,2]
[347735946,1736087450180,-1485.74,8.493e-05,2]
[347735947,1736087450190,-662.65,8.493e-05,2]
[347735948,1736087450200,-2310.84,8.493e-05,2]
[347735949,1736087450209,-732.61,8.493e-05,2]
[347735950,1736087450219,-1449.67,8.493e-05,2]
[347735951,1736087450229,-1510.38,8.493e-05,2]
[347735952,1736087450239,-1624.68,8.493e-05,2]
[347735953,1736087450248,-1317.06,8.493e-05,2]
[347735954,1736087450257,-818.3,8.493e-05,2]
[347735955,1736087450267,-565.58,8.493e-05,2]
[347735956,1736087450276,-500.0,8.493e-05,2]
[347735957,1736087450286,-1328.64,8.493e-05,2]
[347735958,1736087450295,-732.45,8.493e-05,2]
[347735959,1736087450305,-2550.53,8.493e-05,2]
[347735960,1736087450315,-500.0,8.493e-05,2]
[347735961,1736087450324,-882.95,8.493e-05,2]
[347735962,1736087450334,-1751.15,8.493e-05,2]
[347735963,1736087450345,-533.7,8.493e-05,2]
[347735964,1736087450355,-1774.07,8.493e-05,2]
[347735965,1736087450364,-864.64,8.493e-05,2]
[347735966,1736087450374,-568.00943513,8.493e-05,2]
[347735967,1736087450383,-2874.65,8.493e-05,2]
[347735968,1736087450392,-800.29,8.493e-05,2]
[347735969,1736087450401,-877.13,8.493e-05,2]
[347735970,1736087450411,-1180.17,8.493e-05,2]
[347735971,1736087450420,-577.28,8.493e-05,2]
[347735972,1736087450429,-500.0,8.493e-05,2]
[347735973,1736087450438,-1073.55,8.493e-05,2]
[347735974,1736087450447,-4347.54,8.493e-05,2]
[347735975,1736087450457,-1014.49,8.493e-05,2]
[347735976,1736087450466,-1330.12,8.493e-05,2]
[347735977,1736087450476,-1436.65,8.493e-05,2]
[347735978,1736087450486,-600.32,8.493e-05,2]
[347735979,1736087450495,-1657.93,8.493e-05,2]
[347735980,1736087450505,-599.67,8.493e-05,2]
[347735981,1736087450514,-1031.98,8.493e-05,2]
[347735982,1736087450523,-686.4,8.493e-05,2]
[347735983,1736087450533,-500.0,8.493e-05,2]
[347735984,1736087450542,-1746.76,8.493e-05,2]
[347735985,1736087450552,-2025.86,8.493e-05,2]
[347735986,1736087450561,-771.32,8.493e-05,2]
[347735987,1736087450571,-1216.52,8.493e-05,2]
[347735988,1736087450581,-250.0,8.537e-05,2]
[347735989,1736087450590,-168.14,8.584e-05,2]
[347735990,1736087450602,-2571.53,8.584e-05,2]
[347735991,1736087450610,-150.0,8.63e-05,2]
[347735992,1736087450620,-150.0,8.63e-05,2]
[347735993,1736087450629,-150.0,8.63e-05,2]
[347735994,1736087450638,-150.0,8.63e-05,2]
[347735995,1736087450648,-944.0,8.725e-05,2]
[347735996,1736087450658,-150.0,8.737e-05,2]
[347735997,1736087450667,-500.0,8.766e-05,2]
[347735998,1736087450676,-500.0,8.766e-05,2]
[347735999,1736087450685,-539.14,8.766e-05,2]
[347736000,1736087450695,-500.0,8.766e-05,2]
[347736001,1736087450704,-554.11,8.766e-05,2]
[347736002,1736087450714,-500.0,8.766e-05,2]
[347736003,1736087450723,-633.48,8.766e-05,2]
[347736004,1736087450733,-500.0,8.766e-05,2]
[347736005,1736087450742,-376.19167202,8.766e-05,2]
[347736006,1736087450751,-549.43,8.766e-05,2]
[347736007,1736087450760,-500.0,8.766e-05,2]
[347736008,1736087450770,-500.0,8.766e-05,2]
[347736009,1736087450781,-656.44,8.766e-05,2]
[347736010,1736087450790,-500.0,8.766e-05,2]
[347736011,1736087450799,-500.0,8.766e-05,2]
[347736012,1736087450809,-500.0,8.766e-05,2]
[347736013,1736087450819,-500.0,8.766e-05,2]
[347736014,1736087450828,-509.84,8.766e-05,2]
[347736015,1736087450837,-500.0,8.766e-05,2]
[347736016,1736087450847,-500.0,8.766e-05,2]
[347736017,1736087450858,-500.0,8.766e-05,2]
[347736018,1736087450868,-500.0,8.766e-05,2]
[347736019,1736087450877,-255.31165551,8.766e-05,2]
[347736020,1736087450887,-500.0,8.766e-05,2]
[347736021,1736087450897,-641.45,8.766e-05,2]
[347736022,1736087450907,-500.0,8.766e-05,2]
[347736023,1736087450916,-500.0,8.766e-05,2]
[347736024,1736087450926,-500.0,8.766e-05,2]
[347736025,1736087450936,-500.0,8.766e-05,2]
[347736026,1736087450948,-519.93,8.766e-05,2]
[347736027,1736087450958,-500.0,8.766e-05,2]
[347736028,1736087450967,-500.0,8.766e-05,2]
[347736029,1736087450977,-500.0,8.766e-05,2]
[347736030,1736087450986,-500.0,8.766e-05,2]
[347736031,1736087450995,-500.0,8.766e-05,2]
[347736032,1736087451005,-151.31746395,8.766e-05,2]
[347736033,1736087451014,-500.0,8.766e-05,2]
[347736034,1736087451025,-947.94,8.766e-05,2]
[347736035,1736087451034,-500.0,8.766e-05,2]
[347736036,1736087451044,-771.06,8.766e-05,2]
[347736037,1736087451053,-500.0,8.766e-05,2]
[347736038,1736087451062,-500.0,8.766e-05,2]
[347736039,1736087451072,-500.0,8.766e-05,2]
[347736040,1736087451081,-500.0,8.766e-05,2]
[347736041,1736087451091,-500.0,8.766e-05,2]
[347736042,1736087451104,-500.0,8.766e-05,2]
[347736043,1736087451114,-198.06413225,8.766e-05,2]
[347736044,1736087451124,-758.28,8.766e-05,2]
[347736045,1736087451135,-500.0,8.766e-05,2]
[347736046,1736087451146,-500.0,8.766e-05,2]
[347736047,1736087451155,-500.0,8.766e-05,2]
[347736048,1736087451167,-500.0,8.766e-05,2]
[347736049,1736087451177,-522.41,8.766e-05,2]
[347736050,1736087451187,-500.0,8.766e-05,2]
[347736051,1736087451197,-500.0,8.766e-05,2]
[347736052,1736087451207,-500.0,8.766e-05,2]
[347736053,1736087451218,-695.0,8.766e-05,2]
[347736054,1736087451228,-500.0,8.766e-05,2]
[347736055,1736087451237,-500.0,8.766e-05,2]
[347736056,1736087451247,-500.0,8.766e-05,2]
[347736057,1736087451257,-500.0,8.766e-05,2]
[347736058,1736087451266,-500.0,8.766e-05,2]
[347736059,1736087451275,-500.0,8.766e-05,2]
[347736060,1736087451285,-500.0,8.766e-05,2]
[347736061,1736087451294,-500.0,8.766e-05,2]
[347736062,1736087451303,-500.0,8.766e-05,2]
[347736063,1736087451312,-644.71,8.766e-05,2]
[347736064,1736087451322,-500.0,8.766e-05,2]
[347736065,1736087451331,-500.0,8.766e-05,2]
[347736066,1736087451341,-500.0,8.766e-05,2]
[347736067,1736087451351,-500.0,8.766e-05,2]
[347736068,1736087451360,-500.0,8.766e-05,2]
[347736069,1736087451370,-456.70516086,8.766e-05,2]
[347736070,1736087451383,-500.0,8.766e-05,2]
[347736071,1736087451392,-500.0,8.766e-05,2]
[347736072,1736087451402,-500.0,8.766e-05,2]
[347736073,1736087451412,-500.0,8.766e-05,2]
[347736074,1736087451421,-500.0,8.766e-05,2]
[347736075,1736087451431,-635.97,8.766e-05,2]
[347736076,1736087451441,-500.0,8.766e-05,2]
[347736077,1736087451451,-500.0,8.766e-05,2]
[347736078,1736087451461,-585.4,8.766e-05,2]
[347736079,1736087451471,-500.0,8.766e-05,2]
[347736080,1736087451480,-500.0,8.766e-05,2]
[347736081,1736087451490,-500.0,8.766e-05,2]
[347736082,1736087451499,-779.91,8.766e-05,2]
[347736083,1736087451508,-558.76,8.766e-05,2]
[347736084,1736087451517,-500.0,8.766e-05,2]
[347736085,1736087451526,-645.46,8.766e-05,2]
[347736086,1736087451535,-500.0,8.766e-05,2]
[347736087,1736087451545,-857.29,8.766e-05,2]
[347736088,1736087451554,-500.0,8.766e-05,2]
[347736089,1736087451563,-500.0,8.766e-05,2]
[347736090,1736087451572,-500.0,8.766e-05,2]
[347736091,1736087451582,-500.0,8.766e-05,2]
[347736092,1736087451591,-560.06,8.766e-05,2]
[347736093,1736087451602,-500.0,8.766e-05,2]
[347736094,1736087451611,-500.0,8.766e-05,2]
[347736095,1736087451621,-813.35,8.766e-05,2]
[347736096,1736087451630,-500.0,8.766e-05,2]
[347736097,1736087451640,-500.0,8.766e-05,2]
[347736098,1736087451649,-500.0,8.766e-05,2]
[347736099,1736087451659,-500.0,8.766e-05,2]
[347736100,1736087451668,-709.28,8.766e-05,2]
[347736101,1736087451677,-500.0,8.766e-05,2]
[347736102,1736087451687,-933.58,8.766e-05,2]
[347736103,1736087451696,-500.0,8.766e-05,2]
[347736104,1736087451706,-500.0,8.766e-05,2]
[347736105,1736087451715,-500.0,8.766e-05,2]
[347736106,1736087451725,-573.08,8.766e-05,2]
[347736107,1736087451734,-910.71,8.766e-05,2]
[347736108,1736087451743,-500.0,8.766e-05,2]
[347736109,1736087451752,-500.0,8.766e-05,2]
[347736110,1736087451762,-500.0,8.766e-05,2]
[347736111,1736087451771,-500.0,8.766e-05,2]
[347736112,1736087451781,-579.63,8.766e-05,2]
[347736113,1736087451790,-500.0,8.766e-05,2]
[347736114,1736087451799,-500.0,8.766e-05,2]
[347736115,1736087451809,-500.0,8.766e-05,2]
[347736116,1736087451818,-500.0,8.766e-05,2]
[347736117,1736087451828,-500.0,8.766e-05,2]
[347736118,1736087451838,-736.49,8.766e-05,2]
[347736119,1736087451848,-500.0,8.766e-05,2]
[347736120,1736087451857,-500.0,8.766e-05,2]
[347736121,1736087451866,-500.0,8.766e-05,2]
[347736122,1736087451875,-500.0,8.766e-05,2]
[347736123,1736087451884,-500.0,8.766e-05,2]
[347736124,1736087451893,-608.15,8.766e-05,2]
[347736125,1736087451904,-500.0,8.766e-05,2]
[347736126,1736087451913,-500.0,8.766e-05,2]
[347736127,1736087451923,-500.0,8.766e-05,2]
[347736128,1736087451932,-500.0,8.766e-05,2]
[347736129,1736087451945,-151.9621036,8.766e-05,2]
[347736130,1736087451954,-500.0,8.766e-05,2]
[347736131,1736087451964,-658.6,8.766e-05,2]
[347736132,1736087451974,-500.0,8.766e-05,2]
[347736133,1736087451983,-500.0,8.766e-05,2]
[347736134,1736087451992,-500.0,8.766e-05,2]
[347736135,1736087452002,-500.0,8.766e-05,2]
[347736136,1736087452011,-500.0,8.766e-05,2]
[347736137,1736087452020,-500.0,8.766e-05,2]
[347736138,1736087452030,-500.0,8.766e-05,2]
[347736139,1736087452039,-500.0,8.766e-05,2]
[347736140,1736087452048,-500.0,8.766e-05,2]
[347736141,1736087452057,-500.0,8.766e-05,2]
[347736142,1736087452066,-500.0,8.766e-05,2]
[347736143,1736087452075,-500.0,8.766e-05,2]
[347736144,1736087452085,-545.77,8.766e-05,2]
[347736145,1736087452094,-500.0,8.766e-05,2]
[347736146,1736087452104,-500.0,8.766e-05,2]
[347736147,1736087452113,-545.27,8.766e-05,2]
[347736148,1736087452122,-500.0,8.766e-05,2]
[347736149,1736087452131,-500.0,8.766e-05,2]
[347736150,1736087452140,-792.12,8.766e-05,2]
[347736151,1736087452149,-3029.06,8.766e-05,2]
[347736152,1736087452158,-1554.62,8.766e-05,2]
[347736153,1736087452167,-844.73,8.766e-05,2]
[347736154,1736087452185,-500.0,8.766e-05,2]
[347736155,1736087452197,-500.0,8.766e-05,2]
[347736156,1736087452206,-526.79800465,8.767e-05,2]
[347736157,1736087452216,-1642.54,8.767e-05,2]
[347736158,1736087452225,-500.0,8.767e-05,2]
[347736159,1736087452235,-3807.68,8.767e-05,2]
[347736160,1736087452245,-581.45,8.767e-05,2]
[347736161,1736087452255,-500.0,8.767e-05,2]
[347736162,1736087452264,-3354.98,8.767e-05,2]
[347736163,1736087452274,-2557.36,8.767e-05,2]
[347736164,1736087452284,-500.0,8.767e-05,2]
[347736165,1736087452294,-4574.93,8.767e-05,2]
[347736166,1736087452303,-500.0,8.767e-05,2]
[347736167,1736087452313,-692.96,8.767e-05,2]
[347736168,1736087452322,-6708.07,8.767e-05,2]
[347736169,1736087452332,-563.0,8.767e-05,2]
[347736170,1736087452342,-500.0,8.767e-05,2]
[347736171,1736087452353,-4805.9,8.767e-05,2]
[347736172,1736087452363,-7875.64,8.767e-05,2]
[347736173,1736087452373,-500.0,8.767e-05,2]
[347736174,1736087452382,-500.0,8.767e-05,2]
[347736175,1736087452392,-433.76,8.767e-05,2]
[347736176,1736087452402,-500.0,8.767e-05,2]
[347736177,1736087452411,-500.0,8.767e-05,2]
[347736178,1736087452422,-500.0,8.767e-05,2]
[347736179,1736087452431,-500.0,8.767e-05,2]
[347736180,1736087452441,-576.43,8.767e-05,2]
[347736181,1736087452451,-500.0,8.767e-05,2]
[347736182,1736087452462,-500.0,8.767e-05,2]
[347736183,1736087452472,-613.23,8.767e-05,2]
[347736184,1736087452482,-698.39,8.767e-05,2]
[347736185,1736087452491,-1537.2,8.767e-05,2]
[347736186,1736087452501,-500.0,8.767e-05,2]
[347736187,1736087452511,-500.0,8.767e-05,2]
[347736188,1736087452521,-2922.88,8.767e-05,2]
[347736189,1736087452531,-500.0,8.767e-05,2]
[347736190,1736087452540,-611.39,8.767e-05,2]
[347736191,1736087452550,-500.0,8.767e-05,2]
[347736192,1736087452560,-938.55,8.767e-05,2]
[347736193,1736087452570,-1444.28,8.767e-05,2]
[347736194,1736087452580,-500.0,8.767e-05,2]
[347736195,1736087452590,-996.14,8.767e-05,2]
[347736196,1736087452601,-533.69,8.767e-05,2]
[347736197,1736087452612,-500.0,8.767e-05,2]
[347736198,1736087452622,-602.64,8.767e-05,2]
[347736199,1736087452632,-510.46,8.767e-05,2]
[347736200,1736087452642,-5569.43,8.767e-05,2]
[347736201,1736087452652,-758.58,8.767e-05,2]
[347736202,1736087452661,-500.0,8.767e-05,2]
[347736203,1736087452671,-590.65283226,8.767e-05,2]
[347736204,1736087452681,-500.0,8.767e-05,2]
[347736205,1736087452691,-673.22,8.767e-05,2]
[347736206,1736087452701,-500.0,8.767e-05,2]
[347736207,1736087452711,-1180.17,8.767e-05,2]
[347736208,1736087452721,-500.0,8.767e-05,2]
[347736209,1736087452730,-500.0,8.767e-05,2]
[347736210,1736087452740,-1046.53,8.767e-05,2]
[347736211,1736087452750,-608.8,8.767e-05,2]
[347736212,1736087452760,-500.0,8.767e-05,2]
[347736213,1736087452770,-614.88,8.767e-05,2]
[347736214,1736087452780,-500.0,8.767e-05,2]
[347736215,1736087452789,-1270.54,8.767e-05,2]
[347736216,1736087452799,-646.03,8.767e-05,2]
[347736217,1736087452808,-500.0,8.767e-05,2]
[347736218,1736087452818,-500.0,8.767e-05,2]
[347736219,1736087452827,-500.0,8.767e-05,2]
[347736220,1736087452837,-500.0,8.767e-05,2]
[347736221,1736087452847,-638.28,8.767e-05,2]
[347736222,1736087452857,-1746.53,8.767e-05,2]
[347736223,1736087452867,-500.0,8.767e-05,2]
[347736224,1736087452877,-500.0,8.767e-05,2]
[347736225,1736087452887,-813.03,8.767e-05,2]
[347736226,1736087452896,-636.41,8.767e-05,2]
[347736227,1736087452906,-861.08,8.767e-05,2]
[347736228,1736087452915,-500.0,8.767e-05,2]
[347736229,1736087452925,-691.19,8.767e-05,2]
[347736230,1736087452934,-569.3,8.767e-05,2]
[347736231,1736087452947,-3515.39,8.767e-05,2]
[347736232,1736087452956,-1185.52,8.767e-05,2]
[347736233,1736087452967,-1147.13,8.767e-05,2]
[347736234,1736087452977,-500.0,8.767e-05,2]
[347736235,1736087452987,-500.0,8.767e-05,2]
[347736236,1736087452996,-879.06,8.767e-05,2]
[347736237,1736087453006,-1114.61,8.767e-05,2]
[347736238,1736087453015,-818.0,8.767e-05,2]
[347736239,1736087453025,-500.0,8.767e-05,2]
[347736240,1736087453034,-500.0,8.767e-05,2]
[347736241,1736087453048,-1021.84,8.767e-05,2]
[347736242,1736087453057,-500.0,8.767e-05,2]
[347736243,1736087453067,-698.7,8.767e-05,2]
[347736244,1736087453077,-624.66,8.767e-05,2]
[347736245,1736087453086,-500.0,8.767e-05,2]
[347736246,1736087453097,-738.42,8.767e-05,2]
[347736247,1736087453107,-500.0,8.767e-05,2]
[347736248,1736087453117,-605.13,8.767e-05,2]
[347736249,1736087453127,-1424.29,8.767e-05,2]
[347736250,1736087453137,-1100.5,8.767e-05,2]
[347736251,1736087453146,-500.0,8.767e-05,2]
[347736252,1736087453156,-645.23,8.767e-05,2]
[347736253,1736087453166,-500.0,8.767e-05,2]
[347736254,1736087453175,-528.75,8.767e-05,2]
[347736255,1736087453185,-906.79,8.767e-05,2]
[347736256,1736087453195,-728.95,8.767e-05,2]
[347736257,1736087453205,-691.64,8.767e-05,2]
[347736258,1736087453215,-589.99,8.767e-05,2]
[347736259,1736087453225,-500.0,8.767e-05,2]
[347736260,1736087453235,-1480.26,8.767e-05,2]
[347736261,1736087453245,-500.0,8.767e-05,2]
[347736262,1736087453255,-1775.43,8.767e-05,2]
[347736263,1736087453265,-743.22,8.767e-05,2]
[347736264,1736087453274,-500.0,8.767e-05,2]
[347736265,1736087453284,-781.44,8.767e-05,2]
[347736266,1736087453294,-699.6,8.767e-05,2]
[347736267,1736087453303,-500.0,8.767e-05,2]
[347736268,1736087453313,-968.92,8.767e-05,2]
[347736269,1736087453325,-500.0,8.767e-05,2]
[347736270,1736087453335,-616.91,8.767e-05,2]
[347736271,1736087453346,-1140.5,8.767e-05,2]
[347736272,1736087453357,-514.64,8.767e-05,2]
[347736273,1736087453368,-524.1,8.767e-05,2]
[347736274,1736087453379,-918.55,8.767e-05,2]
[347736275,1736087453390,-702.75,8.767e-05,2]
[347736276,1736087453401,-500.0,8.767e-05,2]
[347736277,1736087453411,-1033.65,8.767e-05,2]
[347736278,1736087453422,-2079.48,8.767e-05,2]
[347736279,1736087453433,-995.5,8.767e-05,2]
[347736280,1736087453443,-1082.324567,8.767e-05,2]
[347736281,1736087453454,-500.0,8.767e-05,2]
[347736282,1736087453465,-500.0,8.767e-05,2]
[347736283,1736087453476,-1050.75,8.767e-05,2]
[347736284,1736087453487,-2288.37,8.767e-05,2]
[347736285,1736087453498,-500.0,8.767e-05,2]
[347736286,1736087453508,-731.7,8.767e-05,2]
[347736287,1736087453520,-624.19,8.767e-05,2]
[347736288,1736087453531,-500.0,8.767e-05,2]
[347736289,1736087453542,-1187.11,8.767e-05,2]
[347736290,1736087453554,-757.3,8.767e-05,2]
[347736291,1736087453564,-500.0,8.767e-05,2]
[347736292,1736087453575,-621.88,8.767e-05,2]
[347736293,1736087453585,-1098.17,8.767e-05,2]
[347736294,1736087453597,-726.88,8.767e-05,2]
[347736295,1736087453607,-1226.741349,8.767e-05,2]
[347736296,1736087453618,-500.0,8.767e-05,2]
[347736297,1736087453629,-1252.46,8.767e-05,2]
[347736298,1736087453639,-458.64,8.767e-05,2]
[347736299,1736087453650,-500.0,8.767e-05,2]
[347736300,1736087453660,-1865.96,8.767e-05,2]
[347736301,1736087453671,-500.0,8.767e-05,2]
[347736302,1736087453681,-343.57718112,8.767e-05,2]
[347736303,1736087453692,-678.98,8.767e-05,2]
[347736304,1736087453703,-500.0,8.767e-05,2]
[347736305,1736087453714,-536.82,8.767e-05,2]
[347736306,1736087453725,-547.99,8.767e-05,2]
[347736307,1736087453735,-773.79,8.767e-05,2]
[347736308,1736087453746,-3163.81,8.767e-05,2]
[347736309,1736087453758,-2381.79,8.767e-05,2]
[347736310,1736087453768,-500.0,8.767e-05,2]
[347736311,1736087453779,-640.07,8.767e-05,2]
[347736312,1736087453789,-626.77,8.767e-05,2]
[347736313,1736087453800,-1289.71,8.767e-05,2]
[347736314,1736087453811,-500.0,8.767e-05,2]
[347736315,1736087453822,-500.0,8.767e-05,2]
[347736316,1736087453832,-339.93016449,8.767e-05,2]
[347736317,1736087453843,-500.0,8.767e-05,2]
[347736318,1736087453855,-1260.65,8.767e-05,2]
[347736319,1736087453865,-723.31,8.767e-05,2]
[347736320,1736087453875,-500.0,8.767e-05,2]
[347736321,1736087453886,-760.01,8.767e-05,2]
[347736322,1736087453897,-734.13,8.767e-05,2]
[347736323,1736087453912,-1428.45,8.767e-05,2]
[347736324,1736087453923,-2038.47,8.767e-05,2]
[347736325,1736087453933,-500.0,8.767e-05,2]
[347736326,1736087453948,-824.53,8.767e-05,2]
[347736327,1736087453959,-500.0,8.767e-05,2]
[347736328,1736087453971,-1178.06,8.767e-05,2]
[347736329,1736087453982,-442.77843439,8.767e-05,2]
[347736330,1736087453993,-665.54,8.767e-05,2]
[347736331,1736087454004,-841.67,8.767e-05,2]
[347736332,1736087454014,-500.0,8.767e-05,2]
[347736333,1736087454026,-567.9,8.767e-05,2]
[347736334,1736087454037,-501.11,8.767e-05,2]
[347736335,1736087454048,-743.28,8.767e-05,2]
[347736336,1736087454059,-629.72,8.767e-05,2]
[347736337,1736087454070,-1735.99,8.767e-05,2]
[347736338,1736087454081,-1243.34,8.767e-05,2]
[347736339,1736087454093,-1632.07,8.767e-05,2]
[347736340,1736087454107,-500.0,8.767e-05,2]
[347736341,1736087454118,-863.18,8.767e-05,2]
[347736342,1736087454130,-740.77,8.767e-05,2]